fUST/lending_fUST_20241110
["ID","MTS","AMOUNT","RATE_DAILY","PERIOD"]
[341741133,1731173438239,-500.0,0.00030136,2]
[341741134,1731173438248,-603.3899854,0.00030136,2]
[341741135,1731173438257,-500.0,0.00030136,2]
[341741136,1731173438267,-500.0,0.00030136,2]
[341741137,1731173438276,-408.96151108,0.00030136,2]
[341741138,1731173438285,-528.32290881,0.00030136,2]
[341741139,1731173438294,-500.0,0.00030136,2]
[341741140,1731173438303,-500.0,0.00030136,2]
[341741141,1731173438312,-548.27640581,0.00030136,2]
[341741142,1731173438321,-508.30224949,0.00030136,2]
[341741143,1731173438331,-500.0,0.00030136,2]
[341741144,1731173438340,-500.0,0.00030136,2]
[341741145,1731173438351,-500.0,0.00030136,2]
[341741146,1731173438360,-399.3841167,0.00030136,2]
[341741147,1731173438370,-500.0,0.00030136,2]
[341741149,1731173438380,-508.94669036,0.00030136,2]
[341741151,1731173438388,-471.59741227,0.00030136,2]
[341741153,1731173438398,-500.0,0.00030136,2]
[341741154,1731173438408,-500.0,0.00030136,2]
[341741155,1731173438417,-500.0,0.00030136,2]
[341741157,1731173438427,-500.0,0.00030136,2]
[341741159,1731173438435,-500.0,0.00030136,2]
[341741161,1731173438444,-500.0,0.00030136,2]
[341741163,1731173438452,-500.0,0.00030136,2]
[341741165,1731173438461,-187.14,0.00030136,2]
[341741166,1731173438470,-353.04298642,0.00030136,2]
[341741168,1731173438479,-500.0,0.00030136,2]
[341741170,1731173438488,-268.01,0.00030136,2]
[341741172,1731173438497,-500.0,0.00030136,2]
[341741174,1731173438506,-500.0,0.00030136,2]
[341741176,1731173438515,-435.67,0.00030136,2]
[341741178,1731173438524,-544.03922163,0.00030136,2]
[341741180,1731173438534,-511.66654993,0.00030136,2]
[341741182,1731173438543,-510.92725166,0.00030136,2]
[341741184,1731173438553,-500.0,0.00030136,2]
[341741186,1731173438563,-515.92,0.00030136,2]
[341741189,1731173438574,-500.0,0.00030136,2]
[341741190,1731173438583,-500.0,0.00030136,2]
[341741192,1731173438592,-500.0,0.00030136,2]
[341741194,1731173438602,-998.27,0.00030136,2]
[341741196,1731173438611,-500.0,0.00030136,2]
[341741198,1731173438620,-500.0,0.00030136,2]
[341741200,1731173438630,-500.0,0.00030136,2]
[341741202,1731173438639,-500.0,0.00030136,2]
[341741204,1731173438649,-296.84,0.00030136,2]
[341741206,1731173438658,-232.13,0.00030136,2]
[341741208,1731173438667,-500.0,0.00030136,2]
[341741210,1731173438677,-500.0,0.00030136,2]
[341741212,1731173438686,-511.65,0.00030136,2]
[341741214,1731173438695,-500.0,0.00030136,2]
[341741216,1731173438705,-710.85,0.00030136,2]
[341741218,1731173438714,-710.85,0.00030136,2]
[341741220,1731173438724,-500.0,0.00030136,2]
[341741222,1731173438733,-500.0,0.00030136,2]
[341741224,1731173438742,-500.0,0.00030136,2]
[341741226,1731173438750,-500.0,0.00030136,2]
[341741228,1731173438759,-500.0,0.00030136,2]
[341741230,1731173438768,-269.52,0.00030136,2]
[341741231,1731173438778,-500.0,0.00030136,2]
[341741232,1731173438787,-500.0,0.00030136,2]
[341741233,1731173438797,-417.49,0.00030136,2]
[341741234,1731173438806,-151.0,0.00030136,2]
[341741235,1731173438815,-533.47,0.00030136,2]
[341741236,1731173438825,-500.0,0.00030136,2]
[341741237,1731173438834,-2361.4,0.00030136,2]
[341741238,1731173438843,-500.0,0.00030136,2]
[341741239,1731173438854,-500.0,0.00030136,2]
[341741240,1731173438863,-500.0,0.00030136,2]
[341741241,1731173438872,-500.0,0.00030136,2]
[341741242,1731173438882,-240.23094107,0.00030137,2]
[341741243,1731173438891,-428.00896791,0.00030252,2]
[341741244,1731173438900,-500.0,0.00030321,5]
[341741245,1731173438910,-500.0,0.00030357,2]
[341741246,1731173438919,-500.0,0.00030357,5]
[341741247,1731173438933,-710.85,0.00030408,2]
[341741248,1731173438942,-500.0,0.00030409,2]
[341741249,1731173438951,-500.0,0.00030409,2]
[341741250,1731173438960,-500.0,0.00030409,2]
[341741251,1731173438970,-500.0,0.00030409,2]
[341741252,1731173438981,-500.0,0.00030409,2]
[341741253,1731173438990,-500.0,0.00030409,2]
[341741254,1731173439001,-500.0,0.00030409,2]
[341741255,1731173439010,-500.0,0.00030409,2]
[341741256,1731173439019,-225.36,0.00030409,2]
[341741257,1731173439028,-500.0,0.00030409,2]
[341741258,1731173439038,-500.0,0.00030409,2]
[341741259,1731173439047,-500.0,0.00030409,2]
[341741260,1731173439056,-500.0,0.00030409,2]
[341741261,1731173439065,-523.33,0.00030409,2]
[341741262,1731173439075,-500.0,0.00030409,2]
[341741263,1731173439084,-500.0,0.00030409,2]
[341741264,1731173439094,-500.0,0.00030409,2]
[341741265,1731173439103,-500.0,0.0003041,2]
[341741266,1731173439112,-500.0,0.0003041,2]
[341741267,1731173439121,-500.0,0.0003041,2]
[341741268,1731173439130,-500.0,0.0003041,2]
[341741269,1731173439140,-500.0,0.0003041,2]
[341741270,1731173439149,-500.0,0.0003041,2]
[341741271,1731173439158,-500.0,0.0003041,2]
[341741272,1731173439168,-510.28,0.0003041,2]
[341741273,1731173439177,-500.0,0.0003041,2]
[341741274,1731173439186,-500.0,0.0003041,2]
[341741275,1731173439195,-998.27,0.0003041,2]
[341741276,1731173439204,-400.31,0.0003041,2]
[341741277,1731173439213,-633.08250942,0.0003041,2]
[341741278,1731173439224,-500.0,0.0003041,2]
[341741279,1731173439233,-2361.4,0.0003041,2]
[341741280,1731173439243,-500.0,0.0003041,2]
[341741281,1731173439251,-428.00896791,0.00030469,2]
[341741282,1731173439261,-226.141596,0.00030518,2]
[341741283,1731173439270,-500.0,0.00030683,2]
[341741284,1731173439280,-505.31814526,0.00030683,2]
[341741285,1731173439290,-500.0,0.00030684,2]
[341741286,1731173439299,-368.48716216,0.00030684,2]
[341741287,1731173439308,-456.39,0.00030684,2]
[341741288,1731173439317,-500.0,0.00030684,2]
[341741289,1731173439327,-998.27,0.00030684,2]
[341741291,1731173439336,-2361.4,0.00030684,2]
[341741292,1731173439345,-428.00896791,0.00030685,2]
[341741294,1731173439354,-308.5413885,0.00030685,30]
[341741295,1731173439364,-305.9382545,0.00030822,30]
[341741296,1731173439374,-167.89311321,0.00030858,2]
[341741297,1731173439383,-428.00896791,0.00030901,2]
[341741298,1731173439392,-500.0,0.00030957,2]
[341741299,1731173439401,-710.85,0.00030957,2]
[341741300,1731173439410,-500.0,0.00030958,2]
[341741301,1731173439420,-500.0,0.00030958,2]
[341741302,1731173439429,-998.27,0.00030958,2]
[341741303,1731173439439,-2361.4,0.00030958,2]
[341741305,1731173439448,-428.00896791,0.00031117,2]
[341741306,1731173439458,-226.141596,0.00031203,2]
[341741307,1731173439467,-500.0,0.00031231,2]
[341741308,1731173439478,-500.0,0.00031231,2]
[341741309,1731173439487,-275.58418924,0.00031231,2]
[341741310,1731173439496,-494.6450411,0.00031231,2]
[341741311,1731173439505,-500.0,0.00031232,2]
[341741312,1731173439515,-500.0,0.00031232,2]
[341741314,1731173439524,-998.27,0.00031232,2]
[341741315,1731173439533,-2361.4,0.00031232,2]
[341741316,1731173439543,-616.97,0.00031323,3]
[341741317,1731173439552,-1381.72,0.00031323,10]
[341741318,1731173439561,-710.85,0.00031333,2]
[341741320,1731173439570,-710.85,0.00031333,2]
[341741321,1731173439579,-710.85,0.00031333,2]
[341741323,1731173439588,-4376.77,0.00031333,120]
[341741324,1731173439597,-55135.78599955,0.00031334,2]
[341741325,1731173439607,-151.0,0.00031369,7]
[341741326,1731173439616,-12264.66719734,0.00031411,2]
[341741327,1731173439625,-306.71095064,0.00031483,2]
[341741328,1731173439634,-6100.93336517,0.000315,2]
[341741329,1731173439644,-825.93360488,0.000315,50]
[341741330,1731173439653,-500.0,0.00031505,2]
[341741331,1731173439663,-500.0,0.00031506,2]
[341741332,1731173439672,-500.0,0.00031506,2]
[341741333,1731173439682,-998.27,0.00031506,2]
[341741334,1731173439691,-2361.4,0.00031506,2]
[341741335,1731173439700,-160.249,0.0003153,2]
[341741336,1731173439710,-170.973969,0.00031546,2]
[341741337,1731173439719,-710.85,0.00031547,2]
[341741338,1731173439731,-1000.0,0.00031548,2]
[341741339,1731173439740,-500.0,0.00031548,2]
[341741340,1731173439749,-16678.21387111,0.00031549,3]
[341741341,1731173439758,-710.85,0.00031549,2]
[341741342,1731173439768,-167.89311321,0.0003155,2]
[341741343,1731173439777,-242.59555001,0.0003155,2]
[341741344,1731173439786,-17662.02600001,0.0003155,21]
[341741345,1731173439796,-500.0,0.00031599,7]
[341741346,1731173439805,-710.85,0.00031599,2]
[341741347,1731173439814,-150.112233,0.000316,18]
[341741348,1731173439824,-150.112237,0.000316,14]
[341741349,1731173439834,-150.112233,0.000316,12]
[341741350,1731173439843,-150.112233,0.000316,12]
[341741351,1731173439853,-379.8,0.000316,31]
[341741352,1731173439862,-379.8,0.000316,31]
[341741353,1731173439871,-379.8,0.000316,31]
[341741354,1731173439880,-379.8,0.000316,31]
[341741355,1731173439891,-379.8,0.000316,31]
[341741356,1731173439900,-379.8,0.000316,31]
[341741357,1731173439909,-379.8,0.000316,31]
[341741358,1731173439919,-379.8,0.000316,31]
[341741359,1731173439931,-379.8,0.000316,31]
[341741360,1731173439940,-379.8,0.000316,31]
[341741361,1731173439950,-379.8,0.000316,31]
[341741362,1731173439958,-379.8,0.000316,31]
[341741363,1731173439968,-500.0,0.000316,36]
[341741364,1731173439980,-710.85,0.00031647,2]
[341741365,1731173439989,-500.0,0.00031648,2]
[341741366,1731173439999,-500.0,0.00031648,2]
[341741367,1731173440009,-513.88700574,0.00031648,2]
[341741368,1731173440018,-513.08937121,0.00031649,2]
[341741369,1731173440027,-2626.34841864,0.00031649,10]
[341741370,1731173440037,-151.0,0.00031649,7]
[341741371,1731173440047,-151.0,0.00031649,7]
[341741373,1731173440059,-288.97883,0.00031649,7]
[341741374,1731173440153,-710.85,0.00031649,2]
[341741375,1731173440163,-237.64579739,0.00031649,2]
[341741376,1731173440172,-500.0,0.00031649,2]
[341741377,1731173440182,-500.0,0.00031649,2]
[341741378,1731173440192,-604.68047665,0.00031649,2]
[341741379,1731173440201,-166.35205817,0.00031649,2]
[341741380,1731173440210,-500.0,0.0003165,120]
[341741381,1731173440219,-500.0,0.0003165,120]
[341741382,1731173440230,-152.675519,0.0003165,7]
[341741383,1731173440239,-178.61771,0.0003165,7]
[341741384,1731173440248,-151.0,0.0003165,7]
[341741385,1731173440258,-151.0,0.0003165,7]
[341741386,1731173440266,-151.0,0.0003165,7]
[341741387,1731173440275,-151.0,0.0003165,7]
[341741388,1731173440284,-151.0,0.0003165,7]
[341741389,1731173440294,-626.689014,0.0003165,7]
[341741390,1731173440303,-151.0,0.0003165,7]
[341741391,1731173440312,-626.689014,0.0003165,7]
[341741392,1731173440321,-626.689014,0.0003165,7]
[341741393,1731173440331,-153.535912,0.0003165,7]
[341741394,1731173440340,-626.689014,0.0003165,7]
[341741395,1731173440349,-626.689014,0.0003165,7]
[341741396,1731173440358,-626.689014,0.0003165,7]
[341741397,1731173440367,-542.113231,0.0003165,7]
[341741398,1731173440376,-542.113231,0.0003165,7]
[341741399,1731173440386,-542.113231,0.0003165,7]
[341741400,1731173440395,-542.113231,0.0003165,7]
[341741401,1731173440404,-542.113231,0.0003165,7]
[341741402,1731173440413,-542.113231,0.0003165,7]
[341741403,1731173440423,-151.0,0.0003165,7]
[341741404,1731173440432,-151.0,0.0003165,7]
[341741405,1731173440442,-151.0,0.0003165,7]
[341741406,1731173440451,-710.85,0.0003165,2]
[341741407,1731173440460,-710.85,0.0003165,2]
[341741408,1731173440469,-710.85,0.0003165,2]
[341741409,1731173440481,-710.85,0.0003165,2]
[341741410,1731173440490,-710.85,0.0003165,2]
[341741411,1731173440499,-710.85,0.0003165,2]
[341741412,1731173440509,-710.85,0.0003165,2]
[341741413,1731173440518,-710.85,0.0003165,2]
[341741414,1731173440527,-710.85,0.0003165,2]
[341741415,1731173440537,-710.85,0.0003165,2]
[341741416,1731173440546,-710.85,0.0003165,2]
[341741417,1731173440555,-711.01089572,0.0003165,2]
[341741418,1731173440564,-151.0,0.0003165,7]
[341741419,1731173440573,-151.0,0.0003165,7]
[341741420,1731173440583,-151.0,0.0003165,7]
[341741421,1731173440592,-151.0,0.0003165,7]
[341741422,1731173440601,-151.0,0.0003165,7]
[341741423,1731173440611,-151.0,0.0003165,7]
[341741424,1731173440620,-600.0,0.0003165,2]
[341741425,1731173440629,-151.0,0.0003165,7]
[341741426,1731173440638,-1373.48180684,0.0003165,2]
[341741427,1731173440647,-688.77558036,0.0003165,2]
[341741428,1731173440657,-2460355.58955629,0.0003165,10]
[341741433,1731173442549,-1151.43,0.00031323,10]
[341741434,1731173442559,-171.97,0.00031334,2]
[341741442,1731173442609,-256.03896791,0.00031334,2]
[341741444,1731173442618,-1455.90829159,0.0003165,10]
[341741460,1731173442971,-5402.49039202,0.0003165,10]
[341741461,1731173442983,-3625.0,0.0003165,10]
[341741462,1731173443026,-4973.41071895,0.0003165,10]
[341741483,1731173654987,169.54669,0.00013973,2]
[341741505,1731174434969,2845.53,0.00031648,30]
[341741509,1731174494899,169.750587,0.00013973,2]
[341741555,1731174636022,-539.23331986,0.000252,2]
[341741556,1731174636031,-65.02233056,0.00027727,2]
[341741557,1731174636044,-99.94480344,0.00027727,2]
[341741558,1731174636054,-201.02604,0.00028439,2]
[341741559,1731174636064,-201.02604,0.00028581,2]
[341741560,1731174636074,-631.12995742,0.00029347,2]
[341741561,1731174636086,-162.29704258,0.00029347,2]
[341741562,1731174636095,-127.12657619,0.0003,2]
[341741600,1731174638392,-673.11342381,0.0003,2]
[341741602,1731174638401,-383.65495289,0.00030036,2]
[341741604,1731174638411,-763.31129586,0.00030036,2]
[341741606,1731174638420,-279.0,0.00030135,2]
[341741607,1731174638429,-205.38636394,0.00030136,7]
[341741608,1731174638438,-284.0,0.00030136,2]
[341741609,1731174638454,-500.0,0.00030136,2]
[341741610,1731174638463,-500.0,0.00030136,2]
[341741611,1731174638472,-500.0,0.00030136,2]
[341741612,1731174638481,-500.0,0.00030136,2]
[341741613,1731174638490,-500.0,0.00030136,2]
[341741614,1731174638500,-500.0,0.00030136,2]
[341741615,1731174638509,-511.78765826,0.00030136,2]
[341741616,1731174638518,-500.0,0.00030136,2]
[341741617,1731174638527,-500.0,0.00030136,2]
[341741618,1731174638537,-500.0,0.00030136,2]
[341741619,1731174638546,-517.92815653,0.00030136,2]
[341741620,1731174638555,-500.0,0.00030136,2]
[341741621,1731174638565,-503.92537894,0.00030136,2]
[341741622,1731174638575,-504.70466135,0.00030136,2]
[341741623,1731174638584,-504.08773608,0.00030136,2]
[341741624,1731174638593,-500.0,0.00030136,2]
[341741625,1731174638602,-411.43879321,0.00030136,2]
[341741626,1731174638612,-500.0,0.00030136,2]
[341741627,1731174638624,-503.62948781,0.00030136,2]
[341741628,1731174638633,-500.0,0.00030136,2]
[341741629,1731174638644,-250.0,0.00030136,2]
[341741630,1731174638654,-335.15129115,0.00030136,2]
[341741631,1731174638663,-500.0,0.00030136,2]
[341741632,1731174638672,-500.0,0.00030136,2]
[341741633,1731174638683,-500.0,0.00030136,2]
[341741634,1731174638696,-500.0,0.00030136,2]
[341741635,1731174638707,-500.0,0.00030136,2]
[341741636,1731174638717,-500.0,0.00030136,2]
[341741637,1731174638727,-487.6,0.00030136,2]
[341741638,1731174638737,-500.0,0.00030136,2]
[341741639,1731174638746,-500.0,0.00030136,2]
[341741640,1731174638755,-500.0,0.00030136,2]
[341741641,1731174638765,-500.0,0.00030136,2]
[341741642,1731174638774,-500.0,0.00030136,2]
[341741643,1731174638783,-500.0,0.00030136,2]
[341741644,1731174638792,-500.0,0.00030136,2]
[341741645,1731174638801,-500.0,0.00030136,2]
[341741646,1731174638810,-500.0,0.00030136,2]
[341741647,1731174638820,-1357.66,0.00030136,2]
[341741648,1731174638830,-500.0,0.00030136,2]
[341741649,1731174638841,-500.0,0.00030136,2]
[341741650,1731174638850,-500.0,0.00030136,2]
[341741651,1731174638860,-1210.14,0.00030136,2]
[341741652,1731174638869,-500.0,0.00030136,2]
[341741653,1731174638881,-500.0,0.00030136,2]
[341741654,1731174638890,-500.0,0.00030136,2]
[341741655,1731174638899,-511.29685539,0.00030136,2]
[341741656,1731174638908,-500.0,0.00030136,2]
[341741657,1731174638918,-500.0,0.00030136,2]
[341741658,1731174638927,-500.0,0.00030136,2]
[341741659,1731174638937,-500.0,0.00030136,2]
[341741660,1731174638948,-500.0,0.00030136,2]
[341741661,1731174638957,-500.0,0.00030136,2]
[341741662,1731174638966,-532.7482526,0.00030136,2]
[341741663,1731174638974,-500.0,0.00030136,2]
[341741664,1731174638983,-500.0,0.00030136,2]
[341741665,1731174638993,-500.0,0.00030136,2]
[341741666,1731174639002,-500.0,0.00030136,2]
[341741667,1731174639011,-406.06965389,0.00030136,2]
[341741668,1731174639021,-1264.92,0.00030136,120]
[341741669,1731174639030,-604.4801936,0.00030136,2]
[341741670,1731174639039,-500.0,0.00030136,2]
[341741671,1731174639049,-2336.0,0.00030136,2]
[341741672,1731174639058,-500.0,0.00030136,2]
[341741673,1731174639068,-500.0,0.00030136,2]
[341741674,1731174639077,-500.0,0.00030136,2]
[341741675,1731174639087,-500.0,0.00030136,2]
[341741676,1731174639096,-2066.23,0.00030136,2]
[341741677,1731174639105,-500.0,0.00030136,2]
[341741678,1731174639114,-500.0,0.00030136,2]
[341741679,1731174639124,-500.0,0.00030136,2]
[341741680,1731174639134,-521.13918533,0.00030136,2]
[341741681,1731174639143,-500.0,0.00030136,2]
[341741682,1731174639153,-500.0,0.00030136,2]
[341741683,1731174639162,-322.54305302,0.00030136,2]
[341741684,1731174639172,-500.0,0.00030136,2]
[341741685,1731174639181,-597.94792,0.00030136,2]
[341741686,1731174639192,-500.0,0.00030136,2]
[341741687,1731174639201,-370.60768278,0.00030136,2]
[341741688,1731174639210,-320.82381325,0.00030136,2]
[341741689,1731174639220,-233.24974041,0.00030136,2]
[341741690,1731174639229,-500.0,0.00030136,2]
[341741691,1731174639241,-500.0,0.00030136,2]
[341741692,1731174639250,-500.0,0.00030136,2]
[341741693,1731174639259,-500.0,0.00030136,2]
[341741694,1731174639269,-232.35523403,0.00030137,2]
[341741695,1731174639279,-383.65495284,0.00030252,2]
[341741696,1731174639288,-500.0,0.00030408,7]
[341741697,1731174639297,-500.0,0.00030409,2]
[341741698,1731174639307,-1210.14,0.00030409,2]
[341741699,1731174639319,-400.95294584,0.0003041,2]
[341741700,1731174639328,-500.0,0.0003041,2]
[341741701,1731174639338,-500.0,0.0003041,2]
[341741702,1731174639347,-268.43744632,0.0003041,2]
[341741703,1731174639356,-269.77429486,0.0003041,2]
[341741704,1731174639365,-500.0,0.0003041,2]
[341741705,1731174639375,-500.0,0.0003041,2]
[341741706,1731174639384,-1357.66,0.0003041,2]
[341741707,1731174639394,-500.0,0.0003041,2]
[341741708,1731174639403,-500.0,0.0003041,2]
[341741709,1731174639413,-500.0,0.0003041,2]
[341741710,1731174639422,-1264.92,0.0003041,120]
[341741711,1731174639431,-2336.0,0.0003041,2]
[341741712,1731174639442,-500.0,0.0003041,2]
[341741713,1731174639452,-2066.23,0.0003041,2]
[341741714,1731174639462,-500.0,0.0003041,2]
[341741715,1731174639471,-500.0,0.0003041,2]
[341741716,1731174639481,-500.0,0.0003041,2]
[341741717,1731174639490,-500.0,0.0003041,2]
[341741718,1731174639500,-500.0,0.0003041,2]
[341741719,1731174639509,-500.0,0.0003041,2]
[341741720,1731174639519,-500.0,0.00030424,5]
[341741721,1731174639528,-383.65495284,0.00030468,2]
[341741723,1731174639538,-500.0,0.00030683,2]
[341741725,1731174639548,-500.0,0.00030683,2]
[341741726,1731174639557,-1210.14,0.00030683,2]
[341741727,1731174639567,-500.0,0.00030684,2]
[341741728,1731174639577,-575.85156493,0.00030684,2]
[341741729,1731174639587,-500.0,0.00030684,2]
[341741730,1731174639596,-466.2,0.00030684,2]
[341741731,1731174639606,-1357.66,0.00030684,2]
[341741732,1731174639615,-500.0,0.00030684,2]
[341741733,1731174639625,-500.0,0.00030684,2]
[341741734,1731174639635,-500.0,0.00030684,2]
[341741735,1731174639644,-1264.92,0.00030684,120]
[341741736,1731174639653,-2336.0,0.00030684,2]
[341741737,1731174639663,-503.0,0.00030684,2]
[341741738,1731174639672,-2066.23,0.00030684,2]
[341741739,1731174639681,-500.0,0.00030684,2]
[341741740,1731174639802,-500.0,0.00030684,2]
[341741741,1731174639812,-383.65495284,0.00030684,2]
[341741742,1731174639821,-500.0,0.00030684,2]
[341741743,1731174639831,-500.0,0.00030684,2]
[341741744,1731174639840,-500.0,0.00030684,2]
[341741745,1731174639849,-500.0,0.00030684,2]
[341741746,1731174639858,-500.0,0.00030685,2]
[341741748,1731174639867,-500.0,0.00030829,2]
[341741750,1731174639876,-275.58418924,0.00030829,2]
[341741751,1731174639886,-153.51646824,0.00030829,2]
[341741752,1731174639895,-500.0,0.00030829,2]
[341741753,1731174639904,-500.0,0.00030829,2]
[341741754,1731174639913,-155.49751048,0.00030829,2]
[341741755,1731174639923,-7988.7135994,0.0003083,2]
[341741756,1731174639932,-1111.91,0.00030835,10]
[341741757,1731174639943,-1334.29,0.00030837,10]
[341741758,1731174639952,-3200.0,0.00030845,2]
[341741759,1731174639962,-174.09767737,0.00030847,2]
[341741760,1731174639970,-383.65495284,0.000309,2]
[341741761,1731174639981,-160.283,0.000309,2]
[341741762,1731174639990,-753.66,0.00030927,3]
[341741763,1731174640000,-251.21,0.00030937,3]
[341741764,1731174640009,-502.42,0.00030938,3]
[341741765,1731174640019,-599.35368431,0.00030957,2]
[341741766,1731174640030,-1210.14,0.00030957,2]
[341741768,1731174640039,-500.0,0.00030958,2]
[341741769,1731174640048,-1000.0,0.00030958,14]
[341741770,1731174640058,-500.0,0.00030958,2]
[341741771,1731174640067,-1357.66,0.00030958,2]
[341741772,1731174640075,-500.0,0.00030958,2]
[341741773,1731174640084,-500.0,0.00030958,2]
[341741774,1731174640093,-1264.92,0.00030958,120]
[341741775,1731174640102,-2336.0,0.00030958,2]
[341741776,1731174640111,-2066.23,0.00030958,2]
[341741777,1731174640120,-500.0,0.00030958,2]
[341741778,1731174640129,-500.0,0.00030958,2]
[341741779,1731174640139,-500.0,0.00030958,2]
[341741780,1731174640148,-383.65495284,0.00031116,2]
[341741781,1731174640158,-7988.7135994,0.00031166,2]
[341741782,1731174640168,-527.23140081,0.00031203,2]
[341741783,1731174640177,-4376.77,0.00031203,120]
[341741784,1731174640187,-1210.14,0.0003122,2]
[341741785,1731174640199,-1210.14,0.00031231,2]
[341741786,1731174640208,-500.0,0.00031231,2]
[341741787,1731174640217,-500.0,0.00031232,2]
[341741788,1731174640226,-500.0,0.00031232,2]
[341741789,1731174640236,-1357.66,0.00031232,2]
[341741790,1731174640246,-382.14,0.00031232,2]
[341741791,1731174640255,-461.62,0.00031232,2]
[341741792,1731174640265,-1264.92,0.00031232,120]
[341741793,1731174640274,-2336.0,0.00031232,2]
[341741794,1731174640283,-2066.23,0.00031232,2]
[341741795,1731174640292,-500.0,0.00031232,2]
[341741796,1731174640301,-500.0,0.00031232,2]
[341741797,1731174640312,-500.0,0.00031232,2]
[341741798,1731174640321,-55135.78599955,0.00031331,2]
[341741799,1731174640330,-383.65495284,0.00031332,2]
[341741800,1731174640339,-500.0,0.00031333,2]
[341741801,1731174640348,-151.0,0.00031374,7]
[341741802,1731174640358,-12264.66719734,0.00031411,2]
[341741803,1731174640367,-1000.0,0.00031448,2]
[341741804,1731174640376,-150.92039612,0.0003147,2]
[341741805,1731174640385,-7988.7135994,0.00031481,2]
[341741806,1731174640394,-825.93360488,0.000315,50]
[341741807,1731174640403,-150.112236,0.000315,16]
[341741808,1731174640412,-500.0,0.00031504,10]
[341741809,1731174640421,-1210.14,0.00031505,2]
[341741810,1731174640430,-500.0,0.00031505,2]
[341741811,1731174640439,-500.0,0.00031506,2]
[341741812,1731174640451,-500.0,0.00031506,2]
[341741813,1731174640460,-1357.66,0.00031506,2]
[341741814,1731174640469,-1264.92,0.00031506,120]
[341741815,1731174640478,-847.13513866,0.00031506,2]
[341741816,1731174640487,-2066.23,0.00031506,2]
[341741817,1731174640495,-500.0,0.00031506,2]
[341741818,1731174640505,-500.0,0.00031506,2]
[341741819,1731174640514,-1418.53001051,0.00031539,13]
[341741820,1731174640523,-3032.716693,0.00031547,30]
[341741821,1731174640532,-242.59555001,0.00031547,2]
[341741822,1731174640541,-17662.02600001,0.00031548,21]
[341741823,1731174640550,-16678.21387111,0.00031548,3]
[341741824,1731174640559,-174.09767737,0.00031548,2]
[341741825,1731174640568,-383.65495284,0.00031548,2]
[341741826,1731174640577,-1000.0,0.00031576,2]
[341741827,1731174640586,-200.95,0.000316,12]
[341741828,1731174640595,-500.0,0.000316,36]
[341741829,1731174640604,-150.112233,0.000316,19]
[341741830,1731174640613,-379.8,0.000316,31]
[341741831,1731174640623,-379.8,0.000316,31]
[341741832,1731174640632,-379.8,0.000316,31]
[341741833,1731174640641,-379.8,0.000316,31]
[341741834,1731174640651,-379.8,0.000316,31]
[341741835,1731174640660,-379.8,0.000316,31]
[341741836,1731174640669,-379.8,0.000316,31]
[341741837,1731174640678,-379.8,0.000316,31]
[341741838,1731174640687,-379.8,0.000316,31]
[341741839,1731174640696,-379.8,0.000316,31]
[341741840,1731174640706,-379.8,0.000316,31]